Cogmind - Beta 9.6 @@@ ROGUE MODE // 2020.08.01 @ 19:05:00 Player: Alexbot Result: Core destroyed Performance ------------- Evolutions (4) 2000 Regions Visited (10) 2000 Robots Destroyed (59) 295 Value Destroyed (1967) 1967 Prototype IDs (33) 660 Alien Tech Used (0) 0 Bonus (1706) 1706 TOTAL SCORE: 8628 Bonus ------- Follower Combat Kills 1427 Aligned with FarCom 300 Met Zhirov 300 Friendly Fire -321 Cogmind --------- Core Integrity 0/850 Matter 285/300 Energy 100/100 System Corruption 7% Temperature Cool (0) Movement Core (300) Ox5 Location -6/Archives Parts ------- > --- POWER (2) -------- (None) > --- PROPULSION (4) --- (None) > --- UTILITY (7) ------ Large Storage Unit Advanced Signal Interpreter Improved Melee Analysis Suite > --- WEAPON (2) ------- (None) > --- INVENTORY (10) --- Light Angular Momentum Engine Cesium-ion Thruster Experimental Sensor Array Advanced Variable Charge Gun Guided Plasma Cannon Improved KE Penetrator Improved KE Penetrator Gauss Cannon Bore Cannon Heavy Pick Peak State ------------ > --- POWER ------------ Light Angular Momentum Engine > --- PROPULSION ------- VTOL Module Cesium-ion Thruster Cesium-ion Thruster Cesium-ion Thruster > --- UTILITY ---------- Large Storage Unit Advanced Terrain Scanner Experimental Terrain Scan Processor Improved Weapon Shielding System Shield > --- WEAPON ----------- Cooled Particle Cannon Gauss Cannon > --- INVENTORY -------- Light Deuterium Engine Cesium-ion Thruster Experimental Sensor Array Guided Plasma Cannon Scythe [Rating: 43] Favorites ----------- Power Light Nuclear Core Engine Light Ion Engine Power Core Light Nuclear Core Propulsion Cesium-ion Thruster Flight Unit Cesium-ion Thruster Utility Improved Terrain Scan Processor Device Heat Sink Storage Large Storage Unit Processor Improved Terrain Scan Processor Hackware System Shield Protection Improved Weapon Shielding Weapon Light Assault Rifle Energy Gun Advanced Beam Rifle Energy Cannon Cooled Particle Cannon Ballistic Gun Light Assault Rifle Ballistic Cannon Gauss Cannon Launcher Precision Grenade Launcher Slashing Weapon Scythe Piercing Weapon Spear Build | -11 -10 -10 -10 -9 -8 -7 -6 -6 -6 -6 ------- Run | Scr Mat Min Exi Min Mat Fac Fac Ext Cet Arc Slots Evolved 8 | . . . . . 4 2 2 . . . Power 1 | . . . . . 1 . . . . . Propulsion 2 | . . . . . 2 . . . . . Utility 5 | . . . . . 1 2 2 . . . Weapon . | . . . . . . . . . . . Parts Attached 79 | 2 . 8 1 4 25 12 10 11 6 . Power 8 | 1 . 2 . . 2 1 1 1 . . Engine 6 | 1 . 1 . . 2 1 1 . . . Core 2 | . . 1 . . . . . 1 . . Reactor . | . . . . . . . . . . . Propulsion 14 | . . . . 2 7 . 4 1 . . Treads . | . . . . . . . . . . . Leg . | . . . . . . . . . . . Wheel . | . . . . . . . . . . . Hover . | . . . . . . . . . . . Flight 14 | . . . . 2 7 . 4 1 . . Utility 18 | 1 . . 1 . 6 5 3 1 1 . Device 5 | . . . . . 3 1 1 . . . Storage 4 | 1 . . 1 . 1 . 1 . . . Processor 4 | . . . . . 1 . 1 1 1 . Hackware 1 | . . . . . . 1 . . . . Protection 4 | . . . . . 1 3 . . . . Artifact . | . . . . . . . . . . . Weapon 39 | . . 6 . 2 10 6 2 8 5 . Energy Gun 6 | . . 2 . . 3 . . . 1 . Energy Cannon 9 | . . . . 2 2 2 . 3 . . Ballistic Gun 11 | . . 4 . . 3 1 . . 3 . Ballistic Cannon 4 | . . . . . 1 . . 2 1 . Launcher 1 | . . . . . . 1 . . . . Special Weapon . | . . . . . . . . . . . Impact Weapon . | . . . . . . . . . . . Slashing Weapon 6 | . . . . . 1 2 2 1 . . Piercing Weapon 2 | . . . . . . . . 2 . . Special Melee Weapon . | . . . . . . . . . . . Unidentified Prototypes 7 | . . . . . 2 1 1 1 2 . Parts Lost 29 | . . 4 . 2 10 3 . 10 . . Power 3 | . . . . . . 1 . 2 . . Propulsion 11 | . . . . . 7 . . 4 . . Utility 7 | . . . . . 1 2 . 4 . . Weapon 8 | . . 4 . 2 2 . . . . . Highest Loss Streak 6 | . . 2 . 2 6 2 . 4 . . Average Slot Usage (%) 45 | . 28 52 57 52 54 38 40 44 23 23 Engine 2 | . 14 8 . . 4 . . 2 . . Core 3 | . . 5 14 14 2 . . . . . Flight 6 | . . . . . 13 . 5 12 . . Device 3 | . . . . . 7 5 6 . . . Storage 6 | . 14 14 14 13 4 2 . 6 6 6 Processor 5 | . . . . . 6 7 6 5 12 13 Hackware 1 | . . . . . . 3 6 2 . . Protection 2 | . . . . . 2 7 6 2 . . Energy Gun 1 | . . 2 . . 2 2 . . . . Ballistic Gun 6 | . . 20 28 22 4 . . . 2 3 Ballistic Cannon 1 | . . . . . 3 . . 3 . . Slashing Weapon 2 | . . . . . 2 6 5 . . . Naked Turns . | . . . . . . . . . . . Heaviest Build 44 | 9 9 13 15 15 22 23 30 44 25 22 Greatest Support 23 | 3 3 3 3 8 16 3 23 23 3 3 Greatest Overweight (x) 8 | 2 2 4 4 4 4 7 1 6 8 7 Average Overweight (x) 1 | 1 2 2 3 2 1 1 . 2 6 6 Largest Inventory Capacity 10 | 6 6 6 10 8 8 8 10 10 10 10 Average Capacity 7 | 5 6 6 6 7 6 5 4 10 10 10 Most Carried 10 | 4 4 6 7 7 8 8 5 10 10 10 Average Carried 6 | 2 4 4 6 6 5 5 3 8 9 9 Final Capacity 10 | 6 6 6 8 4 8 4 10 10 10 10 Final Carried 10 | 4 4 6 7 4 8 4 5 10 9 10 Class Distribution -------------------- 55% | Mutant 19% | Commander-Mutant 15% | Scavenger-Mutant 5% | Scout 4% | Assassin Dominant Class ---------------- Mutant | -10/Materials Mutant | -10/Mines Mutant | -10/Exiles Mutant | -9/Mines Scavenger-Mutant | -8/Materials Mutant | -7/Factory Scout | -6/Factory Commander-Mutant | -6/Extension Mutant | -6/Cetus Mutant | -6/Archives Resources | -11 -10 -10 -10 -9 -8 -7 -6 -6 -6 -6 ----------- Run | Scr Mat Min Exi Min Mat Fac Fac Ext Cet Arc Matter Collected 1630 | 220 . 143 . 59 410 106 75 470 147 . Remotely . | . . . . . . . . . . . Salvage Created 2190 | . . 246 . 52 763 303 181 539 106 . Parts 115 | . . 18 . 6 42 15 5 25 4 . Haulers Intercepted 2 | . . . . . 1 . 1 . . . Recyclers Shooed . | . . . . . . . . . . . Parts Field Recycled . | . . . . . . . . . . . Retrieved Matter . | . . . . . . . . . . . Parts Self-Destructed . | . . . . . . . . . . . Prevented . | . . . . . . . . . . . Kills | -11 -10 -10 -10 -9 -8 -7 -6 -6 -6 -6 ------- Run | Scr Mat Min Exi Min Mat Fac Fac Ext Cet Arc Combat Hostiles Destroyed 46 | . . 7 . 3 17 8 2 7 2 . Melee 14 | . . . . . 3 7 2 2 . . Guns 12 | . . 7 . 1 3 . . . 1 . Cannons 19 | . . . . 2 11 . . 5 1 . AOE 1 | . . . . . . 1 . . . . Classes Destroyed 13 | . . 4 . . 4 4 . 1 . . Worker 1 | . . 1 . . . . . . . . Builder 3 | . . . . . . 1 . 2 . . Tunneler 1 | . . 1 . . . . . . . . Hauler 2 | . . . . . 1 . 1 . . . Recycler 1 | . . . . . 1 . . . . . Watcher 3 | . . . . . 1 . 1 1 . . Swarmer 15 | . . 3 . 3 7 . 2 . . . Grunt 17 | . . 4 . . 6 4 . 2 1 . Duelist 1 | . . . . . . 1 . . . . Sentry 9 | . . . . . 4 . . 5 . . Hunter 1 | . . . . . . 1 . . . . Programmer 2 | . . . . . . 2 . . . . Cetus Guard 1 | . . . . . . . . . 1 . Thug 1 | . . . . . . . . 1 . . Savage 1 | . . . . . . . . 1 . . Best Kill Streak 5 | . . 5 . 3 5 5 1 4 1 . Combat Bots Only 5 | . . 3 . 3 5 4 1 4 1 . Max Kills in Single Turn 2 | . . 2 . 1 1 2 1 1 1 . Gunslinging 1 | . . 1 . . . . . . . . Exploded 1 | . . . . . . 1 . . . . Melee 1 | . . . . . 1 1 1 1 . . Uniques/NPCs Destroyed . | . . . . . . . . . . . Combat | -11 -10 -10 -10 -9 -8 -7 -6 -6 -6 -6 -------- Run | Scr Mat Min Exi Min Mat Fac Fac Ext Cet Arc Damage Taken 4820 | . . 587 . 217 1141 1100 92 1184 35 464 Core 1948 | . . 126 . 76 301 587 75 299 20 464 Absorbed by Shields 15 | . . . . . . . . . 15 . Core Remaining (%) 45 | 100 . . . 19 45 16 . . . . Volleys Fired 161 | . . 29 . 15 73 7 . 32 5 . Largest 2 | . . 2 . 2 2 1 . 2 1 . Hottest 120 | . . 70 . 120 120 120 . 105 57 . Shots Fired 239 | . . 58 . 25 83 7 . 61 5 . Gun 130 | . . 58 . 20 45 3 . . 4 . Cannon 109 | . . . . 5 38 4 . 61 1 . Launcher . | . . . . . . . . . . . Special . | . . . . . . . . . . . Kinetic 174 | . . 41 . 20 55 2 . 51 5 . Thermal 64 | . . 17 . 5 28 4 . 10 . . Explosive . | . . . . . . . . . . . Electromagnetic 1 | . . . . . . 1 . . . . Robot Hit Streak 24 | . . 10 . 5 16 9 . 24 2 . Robot Miss Streak 6 | . . 2 . 6 4 . . 2 2 . Penetration Max . | . . . . . . . . . . . Secondary Targets 3 | . . 2 . 1 . . . . . . Max Gunslinging Chain 1 | . . 1 . 1 . . . . . . Shots Hit Robots 190 | . . 39 . 12 70 19 13 34 3 . Core Hits 85 | . . 16 . 4 27 11 5 19 3 . Critical Hits 13 | . . 1 . . 1 1 1 8 1 . Critical Kills 4 | . . . . . . . . 3 1 . Critical Parts Destroyed 8 | . . 1 . . 1 1 1 4 . . Melee Attacks 101 | . . . . . 15 48 31 7 . . Impact . | . . . . . . . . . . . Slashing 95 | . . . . . 15 48 31 1 . . Piercing 6 | . . . . . . . . 6 . . Sneak Attacks 4 | . . . . . . . 3 1 . . Combat Hostiles 2 | . . . . . . . 1 1 . . Follow-up Attacks . | . . . . . . . . . . . Damage Inflicted 5161 | . . 407 . 231 1759 959 600 1096 109 . Guns 1155 | . . 407 . 46 588 25 . . 89 . Cannons 1958 | . . . . 185 805 91 . 857 20 . Explosions 419 | . . . . . . 419 . . . . Melee 1627 | . . . . . 366 424 600 237 . . Ramming 2 | . . . . . . . . 2 . . Kinetic 1836 | . . 246 . 46 767 25 . 643 109 . Thermal 1249 | . . 161 . 185 626 63 . 214 . . Explosive 419 | . . . . . . 419 . . . . Electromagnetic 28 | . . . . . . 28 . . . . Impact . | . . . . . . . . . . . Slashing 1390 | . . . . . 366 424 600 . . . Piercing 237 | . . . . . . . . 237 . . Highest Corruption 7 | . . . . . . 4 . 7 7 7 Average Corruption 5 | . . . . . . 3 . 6 7 7 Corruption Purged . | . . . . . . . . . . . Effects 58 | . . . . . . 17 . 28 10 3 Message Errors 15 | . . . . . . 7 . 7 1 . Matter Fused 16 | . . . . . . 2 . 9 3 2 Heat Flow Errors 7 | . . . . . . 3 . 2 1 1 Energy Discharges 7 | . . . . . . 2 . 3 2 . Data Loss (minor) 7 | . . . . . . . . 5 2 . Targeting Errors 6 | . . . . . . 3 . 2 1 . Overload Shots 1 | . . . . . . . . 1 . . Overflow Damage 197 | . . . . . 58 60 76 3 . . Projectiles 61 | . . . . . 58 . . 3 . . Explosions 45 | . . . . . . 45 . . . . Melee 91 | . . . . . . 15 76 . . . Knockbacks 7 | . . . . . 6 . . 1 . . Impact . | . . . . . . . . . . . Kinetic 6 | . . . . . 5 . . 1 . . Secondary 1 | . . . . . 1 . . . . . Self-Inflicted Damage 76 | . . . . . . 75 . 1 . . Shots 1 | . . . . . . 1 . . . . Rammed 1 | . . . . . . . . 1 . . Targets Rammed 1 | . . . . . . . . 1 . . Kicked . | . . . . . . . . . . . Crushed . | . . . . . . . . . . . Highest Temperature 427 | . . 152 . 336 427 213 . 258 155 207 Average Temperature 83 | . . 64 . 108 111 72 . 68 81 114 Received Heat Transfer 1215 | . . 279 . . 468 270 . 189 9 . Effects 2 | . . . . . 2 . . . . . Shutdowns 1 | . . . . . 1 . . . . . Damage (minor) 1 | . . . . . 1 . . . . . Siege Activations . | . . . . . . . . . . . Robots Corrupted . | . . . . . . . . . . . Combat Hostiles . | . . . . . . . . . . . Parts Fried . | . . . . . . . . . . . Impact Corruptions . | . . . . . . . . . . . Robots Melted . | . . . . . . . . . . . Combat Hostiles . | . . . . . . . . . . . Parts Melted 4 | . . . . 2 1 . . 1 . . Heat Transferred 2698 | . . 481 . 400 1361 160 . 296 . . Parts Sabotaged . | . . . . . . . . . . . Parts Stolen . | . . . . . . . . . . . Parts Stripped . | . . . . . . . . . . . Power Chain Reactions . | . . . . . . . . . . . Missiles Intercepted . | . . . . . . . . . . . Alert | -11 -10 -10 -10 -9 -8 -7 -6 -6 -6 -6 ------- Run | Scr Mat Min Exi Min Mat Fac Fac Ext Cet Arc Peak Influence 388 | . . 135 . 50 210 214 83 374 321 388 Average Influence 77 | . . 39 . 9 82 59 38 90 246 158 Maximum Alert Level 1 | . . . . . 1 1 . 1 1 1 Low Security (%) 91 | 100 100 100 . 100 96 98 100 95 8 75 Level 1 8 | . . . . . 3 1 . 4 91 24 Level 2 . | . . . . . . . . . . . Level 3 . | . . . . . . . . . . . Level 4 . | . . . . . . . . . . . Level 5 . | . . . . . . . . . . . High Security . | . . . . . . . . . . . Max Security . | . . . . . . . . . . . Squads Dispatched 6 | . . . . . 2 2 1 1 . . Investigation 1 | . . . . . 1 . . . . . Extermination 2 | . . . . . . 1 1 . . . Reinforcement 3 | . . . . . 1 1 . 1 . . Assault . | . . . . . . . . . . . Garrison . | . . . . . . . . . . . Intercept . | . . . . . . . . . . . Construction Impeded . | . . . . . . . . . . . Haulers Reinforced . | . . . . . . . . . . . Stealth | -11 -10 -10 -10 -9 -8 -7 -6 -6 -6 -6 --------- Run | Scr Mat Min Exi Min Mat Fac Fac Ext Cet Arc Distress Signals 7 | . . . . . 1 . . 5 1 . Communications Jammed . | . . . . . . . . . . . Distress Signals . | . . . . . . . . . . . Times Spotted 105 | . . 7 . 11 30 15 6 31 5 . Peak Tracking Total 7 | . . 3 . 7 5 5 4 4 3 . Tactical Retreats 10 | . . . . 2 4 . 1 3 . . Traps | -11 -10 -10 -10 -9 -8 -7 -6 -6 -6 -6 ------- Run | Scr Mat Min Exi Min Mat Fac Fac Ext Cet Arc Traps Triggered 3 | . . . . . . . 1 2 . . Indirectly . | . . . . . . . . . . . Trap Hack Attempts . | . . . . . . . . . . . Triggered . | . . . . . . . . . . . Disarmed . | . . . . . . . . . . . Reprogrammed . | . . . . . . . . . . . Reused . | . . . . . . . . . . . Traps Extracted . | . . . . . . . . . . . Installed . | . . . . . . . . . . . Triggered 1 | . . . . . . . . 1 . . Machines | -11 -10 -10 -10 -9 -8 -7 -6 -6 -6 -6 ---------- Run | Scr Mat Min Exi Min Mat Fac Fac Ext Cet Arc Machines Disabled 12 | . . . . . 3 1 . 4 3 1 Max in Single Turn 1 | . . . . . 1 1 . 1 1 . Machines Sabotaged . | . . . . . . . . . . . Garrisons Compromised . | . . . . . . . . . . . Overloaded Fab Kills . | . . . . . . . . . . . Fab Network Shutdowns . | . . . . . . . . . . . Hacking | -11 -10 -10 -10 -9 -8 -7 -6 -6 -6 -6 --------- Run | Scr Mat Min Exi Min Mat Fac Fac Ext Cet Arc Machines Accessed 24 | . . . 1 . 4 6 5 6 2 . Terminals 19 | . . . . . 3 4 4 6 2 . Fabricators 1 | . . . . . . . 1 . . . Repair Stations 1 | . . . . . . 1 . . . . Recycling Units 1 | . . . . . . 1 . . . . Scanalyzers 1 | . . . . . 1 . . . . . Garrison Access . | . . . . . . . . . . . Total Hacks 68 | . . . 1 . 13 13 19 11 11 . Successful 28 | . . . 1 . 2 5 9 6 5 . Failed 40 | . . . . . 11 8 10 5 6 . Catastrophic 13 | . . . . . 4 5 2 1 1 . Database Lockouts . | . . . . . . . . . . . Manual 38 | . . . 1 . 5 6 6 8 12 . Terminals 54 | . . . . . 10 8 14 11 11 . Fabricators 5 | . . . . . . . 5 . . . Repair Stations 4 | . . . . . . 4 . . . . Recycling Units 1 | . . . . . . 1 . . . . Scanalyzers 3 | . . . . . 3 . . . . . Garrison Access . | . . . . . . . . . . . Terminal Hacks 12 | . . . 1 . . 1 3 5 2 . Part Schematic 1 | . . . . . . . 1 . . . Prototype ID Bank 1 | . . . . . . . 1 . . . Open Door 3 | . . . . . . . 1 2 . . Branch Access Points 1 | . . . . . . 1 . . . . Terminal Index 1 | . . . . . . . . 1 . . Unreport Threat 3 | . . . . . . . . 1 2 . Recall Reinforcements 1 | . . . . . . . . 1 . . EX-Prototype ID Bank 1 | . . . 1 . . . . . . . Fabricator Hacks 3 | . . . . . . . 3 . . . Load Schematic 1 | . . . . . . . 1 . . . Build 2 | . . . . . . . 2 . . . Repair Station Hacks 2 | . . . . . . 2 . . . . Scan Component 2 | . . . . . . 2 . . . . Recycling Unit Hacks 1 | . . . . . . 1 . . . . Retrieve Components 1 | . . . . . . 1 . . . . Scanalyzer 2 | . . . . . 2 . . . . . Insert Component 1 | . . . . . 1 . . . . . Analyze 1 | . . . . . 1 . . . . . Garrison Access Hacks . | . . . . . . . . . . . Unauthorized Hacks 8 | . . . . . . 1 3 1 3 . Terminals 6 | . . . . . . 1 1 1 3 . Track 1 | . . . . . . . . . 1 . Botnet 4 | . . . . . . 1 1 1 1 . Disrupt 1 | . . . . . . . . . 1 . Fabricators 2 | . . . . . . . 2 . . . Prioritize 1 | . . . . . . . 1 . . . Siphon 1 | . . . . . . . 1 . . . Repair Stations . | . . . . . . . . . . . Recycling Units . | . . . . . . . . . . . Scanalyzers . | . . . . . . . . . . . Garrison Access . | . . . . . . . . . . . Data Cores Recovered . | . . . . . . . . . . . Used . | . . . . . . . . . . . Hacking Detections 18 | . . . . . 4 4 4 4 2 . Full Trace Events 1 | . . . . . 1 . . . . . Feedback Events . | . . . . . . . . . . . Feedback Blocked . | . . . . . . . . . . . Robot Schematics Acquired . | . . . . . . . . . . . Robots Built . | . . . . . . . . . . . Matter . | . . . . . . . . . . . Time . | . . . . . . . . . . . Total Robot Build Rating . | . . . . . . . . . . . Part Schematics Acquired 2 | . . . . . 1 . 1 . . . Parts Built 4 | . . . . . . . 4 . . . Matter 218 | . . . . . . . 218 . . . Time 72 | . . . . . . . 72 . . . Total Part Build Rating 12 | . . . . . . . 12 . . . Parts Repaired . | . . . . . . . . . . . Time . | . . . . . . . . . . . Parts Recycled . | . . . . . . . . . . . Recycled Matter . | . . . . . . . . . . . Retrieved Matter . | . . . . . . . . . . . Retrieved Components 10 | . . . . . . 10 . . . . Parts Scanalyzed 1 | . . . . . 1 . . . . . Part Schematics Acquired 1 | . . . . . 1 . . . . . Parts Damaged 1 | . . . . . 1 . . . . . Bothacking | -11 -10 -10 -10 -9 -8 -7 -6 -6 -6 -6 ------------ Run | Scr Mat Min Exi Min Mat Fac Fac Ext Cet Arc Used RIF Installer . | . . . . . . . . . . . Robots Hacked . | . . . . . . . . . . . Non-combat . | . . . . . . . . . . . Combat . | . . . . . . . . . . . Robot Hacks Applied . | . . . . . . . . . . . Relay Couplers Released . | . . . . . . . . . . . Robots Rewired 24 | . . . . . . . . 24 . . Allies Hacked . | . . . . . . . . . . . Hacks Repelled . | . . . . . . . . . . . Allies | -11 -10 -10 -10 -9 -8 -7 -6 -6 -6 -6 -------- Run | Scr Mat Min Exi Min Mat Fac Fac Ext Cet Arc Total Allies 33 | . . . . . . . . 29 1 3 Largest Group 11 | . . . . . . . . 11 6 8 Highest-Rated Group 674 | . . . . . . . . 445 338 674 Highest-Rated Ally 156 | . . . . . . . . 156 147 139 Total Orders . | . . . . . . . . . . . Ally Attacks 278 | . . . . . . . . 192 47 39 Total Damage 6271 | . . . . . . . . 3979 878 1414 Kills 44 | . . . . . . . . 29 8 7 Allies Corrupted 1 | . . . . . . . . 1 . . Allies Melted . | . . . . . . . . . . . Intel | -11 -10 -10 -10 -9 -8 -7 -6 -6 -6 -6 ------- Run | Scr Mat Min Exi Min Mat Fac Fac Ext Cet Arc Robot Analysis Total . | . . . . . . . . . . . Derelict Logs Recovered 1 | . . 1 . . . . . . . . Drone Launches 2 | . . . . . . . . 2 . . Drone Recoveries . | . . . . . . . . . . . Exploration | -11 -10 -10 -10 -9 -8 -7 -6 -6 -6 -6 ------------- Run | Scr Mat Min Exi Min Mat Fac Fac Ext Cet Arc Turns Passed 6561 | 60 41 720 475 391 1400 968 571 1436 388 111 Spaces Moved 3208 | 40 28 313 230 153 521 617 667 506 102 31 Core 1894 | 40 28 313 230 112 93 617 178 150 102 31 Treads . | . . . . . . . . . . . Legs . | . . . . . . . . . . . Wheels . | . . . . . . . . . . . Hover . | . . . . . . . . . . . Flight 1314 | . . . . 41 428 . 489 356 . . Fastest Speed 34 | 50 150 150 200 37 34 50 34 111 300 300 Average Speed 142 | 136 150 191 205 192 121 120 51 180 357 358 Slowest Speed 450 | 150 150 250 250 250 250 400 111 350 450 400 Overloaded Moves . | . . . . . . . . . . . Propulsion Burnouts . | . . . . . . . . . . . Robots Hopped 5 | . . . . 2 . . 3 . . . Cave-ins Triggered 2 | . . . . . . . . 2 . . Exploration Rate (%) 41 | 5 7 76 62 30 48 15 21 64 56 67 Regions Visited 10 Branch Regions 6 Pre-discovered Areas . | . . . . . . . . . . . Known Exits Taken 2 | . . . 1 . . . . . 1 . Unknown Exits Taken 8 | 1 1 1 . 1 1 1 1 1 . . Scrap Searched 4 | . . 3 . 1 . . . . . . Spaces Dug 51 | . . . . . 3 23 11 14 . . Terrain Destroyed 96 | . . . . . 9 47 11 29 . . Melee 36 | . . . . . 2 23 11 . . . Projectile 36 | . . . . . 7 . . 29 . . AOE 24 | . . . . . . 24 . . . . Actions | -11 -10 -10 -10 -9 -8 -7 -6 -6 -6 -6 --------- Run | Scr Mat Min Exi Min Mat Fac Fac Ext Cet Arc Total 4821 | 45 27 380 233 227 1183 763 843 963 125 32 Wait 879 | . . 19 . 54 525 66 131 78 6 . Move 3186 | 39 27 312 229 148 520 616 660 503 101 31 Hop 5 | . . . . 2 . . 3 . . . Pick Up 43 | 4 . 9 1 . 12 2 5 10 . . Fast Attach 29 | 2 . 1 1 . 10 4 5 3 3 . Attach 37 | . . 6 . 4 10 6 5 4 2 . Detach 26 | . . 1 1 2 6 5 2 4 4 1 Swap 13 | . . 1 . . 5 2 . 4 1 . Drop 29 | . . 2 1 2 7 7 1 6 3 . Fire 161 | . . 29 . 15 73 7 . 32 5 . Melee 101 | . . . . . 15 48 31 7 . . Ram 1 | . . . . . . . . 1 . . Kick . | . . . . . . . . . . . Crush . | . . . . . . . . . . . Escape Stasis 35 | . . . . . . . . 35 . . Rewire 275 | . . . . . . . . 275 . . Trap . | . . . . . . . . . . . Miscellaneous 1 | . . . . . . . . 1 . . Route ------- -11/Scrapyard -10/Materials -10/Mines -10/Exiles (discovered 2 exits: *Min x2) -9/Mines -8/Materials -7/Factory (discovered 3 exits: *Fac / Low x2) -6/Factory (discovered 3 exits: [*Fac] / [*Low] / *Ext) -6/Extension (discovered 2 exits: [*Fac] / *Cet) -6/Cetus -6/Archives (discovered 1 exit: [*Hub]) History --------- Turn | Location | Event 31 | -11/Scrapyard | Discovered new exit (range 15) 61 | -11/Scrapyard | Entered Materials 61 | -10/Materials | Discovered new exit (range 12) 102 | -10/Materials | Entered Mines 315 | -10/Mines | Build established: Mutant 539 | -10/Mines | Core integrity fell below 50% 743 | -10/Mines | Found a damaged Exp. Sensor Array with a note attached 755 | -10/Mines | Found Prototype Device 812 | -10/Mines | Deemed a non-threat by the Exiles lab entrance 814 | -10/Mines | Discovered new exit (range 5) 822 | -10/Mines | Entered Exiles 823 | -10/Exiles | Identified exit to Mines 870 | -10/Exiles | Met 8R-AWN 904 | -10/Exiles | Met EX-HEX 962 | -10/Exiles | Met EX-BIN 986 | -10/Exiles | Aligned with FarCom system 988 | -10/Exiles | Given EX-Vault access code 1036 | -10/Exiles | Opened EX-Vault 1053 | -10/Exiles | Found Gui. Plasma Cannon 1098 | -10/Exiles | Warned to stay clear of 0b10 Research branches 1152 | -10/Exiles | Met EX-DEC 1297 | -10/Exiles | Left Exiles lab with Gui. Plasma Cannon 1297 | -10/Exiles | Entered Mines 1677 | -9/Mines | Core integrity fell below 20% 1685 | -9/Mines | Discovered new exit (range 10) 1688 | -9/Mines | Entered Materials 1688 | -8/Materials | Evolved 4 slots: Power x1, Propulsion x2, Utility x1 2017 | -8/Materials | Identified Exp. Sensor Array 2078 | -8/Materials | Build established: Scavenger-Mutant 2474 | -8/Materials | Lost 6 parts (4n1u1w) 2741 | -8/Materials | Lost 3 parts (2n1w) 2997 | -8/Materials | Core integrity fell below 50% 3018 | -8/Materials | Build established: Mutant 3039 | -8/Materials | Discovered new exit (range 16) 3088 | -8/Materials | Entered Factory 3088 | -7/Factory | Evolved 2 slots: Utility x2 3475 | -7/Factory | Core integrity fell below 50% 3863 | -7/Factory | Discovered new exit (range 6) 3868 | -7/Factory | Identified exit to Lower Caves 4045 | -7/Factory | Core integrity fell below 20% 4056 | -7/Factory | Entered another Factory area 4056 | -6/Factory | Evolved 2 slots: Utility x2 4319 | -6/Factory | Discovered new exit (range 5) 4350 | -6/Factory | Discovered new exit (range 8) 4354 | -6/Factory | Found Prototype Processor 4354 | -6/Factory | Identified Exp. Terrain Scan Processor 4357 | -6/Factory | Discovered new exit (range 19) 4571 | -6/Factory | Fabricated Cesium-ion Thruster (x2) 4607 | -6/Factory | Fabricated Cesium-ion Thruster (x2) 4627 | -6/Factory | Entered Extension 5122 | -6/Extension | Build established: Commander-Mutant 5145 | -6/Extension | Crushed by falling debris 5155 | -6/Extension | Crushed by falling debris 5186 | -6/Extension | Lost 4 parts (1p1n2u) 5425 | -6/Extension | Lost 3 parts (1p2n) 5677 | -6/Extension | Rescued a captive Derelict 5679 | -6/Extension | Rescued a captive Derelict 5787 | -6/Extension | Rescued A7 5896 | -6/Extension | Rescued a captive Derelict 5898 | -6/Extension | Rescued a captive Derelict 5990 | -6/Extension | Disrupted transfer network 6010 | -6/Extension | Discovered new exit (range 13) 6021 | -6/Extension | Discovered new exit (range 7) 6063 | -6/Extension | Entered Cetus 6063 | -6/Cetus | Accompanied by 7 allies 6068 | -6/Cetus | Acquired a Cetus Manufacturing Module code from A7 6117 | -6/Cetus | Spotted Cetus Guard 6117 | -6/Cetus | Spotted Cetus Guard 6118 | -6/Cetus | Allies destroyed Cetus Guard 6118 | -6/Cetus | Destroyed Cetus Guard 6119 | -6/Cetus | Spotted Cetus Guard 6119 | -6/Cetus | Spotted Cetus Guard 6120 | -6/Cetus | Allies destroyed Cetus Guard 6132 | -6/Cetus | Allies destroyed Cetus Guard 6275 | -6/Cetus | Started Cetus Manufacturing Module 6300 | -6/Cetus | Manufactured an Enhanced Grunt 6322 | -6/Cetus | Cetus Manufacturing Module disabled 6368 | -6/Cetus | Build established: Mutant 6387 | -6/Cetus | Discovered new exit (range 15) 6443 | -6/Cetus | Identified exit to Archives 6451 | -6/Cetus | Entered Archives 6451 | -6/Archives | Accompanied by 5 allies 6499 | -6/Archives | Met Zhirov 6505 | -6/Archives | Reinforcements dispatched to Archives 6527 | -6/Archives | Discovered new exit (range 15) 6562 | -6/Archives | Zhirov detonated Archives 6562 | -6/Archives | Core destroyed Last Messages --------------- you that. 06500_ System corrupted: Matter fused (-7). 06505_ ALERT: Rogue bot located, all non-essential units route around Archives area. 06505_ Zhirov: "We don't have time to finish the decryption and erase our tracks, I'm jamming their communications! Perun, Svarog, let none of them escape!" 06523_ G-50 Soldier suffers critical hit. 06523_ G-50 Soldier destroyed. 06524_ System corrupted: Heat flow error (+244). 06526_ Archive Hub disabled. 06527_ ST-NN9(h) suffers critical hit. 06527_ Destroyed Bore Cannon. 06527_ EXIT=FOUND 06529_ Perun suffers critical hit. 06533_ Destroyed Hvy. Laser. 06542_ Zhirov: "Remaining here is looking riskier than the alternative... explosives set to detonate, everyone out!" 06544_ Svarog warps through subspace. 06562_ O-32 Director destroyed. Map ----- +----------------------------------------------------+ | ?????????????????#"""V"""#? #?????????????? | | ?????????????????#""" """#* #?????????????? | | ????????????????##"" " "%! ##????????????? | | ??############### % #????????????? | | ??# ""???????????? | | ??# ""???????????? | | ??# ""??????????? | | ??#####+######### V??????????? | | ????? ??#"""" "??????????? | | ??? #"""" ""???????????? | | ??# """"""" ""???????????? | | ??#"""""""""#"V ####?????????? | | ??#""""""""" ?????????? | | ??#""""""" ????????? | | ??#""""" ????????? | | ??????## ##??????????? | | ??????? ???????????? | | ??????? ???????????? | | ?????? ??????????? | | ?????? ??????????? | | ??????? ??????????? | | ????????? ?????????? | | ??????????? ?????????? | | ?????????????# ????????? | | ??????????????# #????????? | | ??????????????# @ #????????? | | ??????????????### !% #??????????? | | ????????????????## ##???????????? | | ?????????????????# < # ""##????????????? | | ?????????????????# # """"#?????????????? | | ?????????????????#####?#######?????????????? | | ???????????????????????????????????????????? | | ???????????????????????????????????????????? | | | | | | | | | | | | | | | | | | | | | | | | | | | | | | | | | | | +----------------------------------------------------+ Best States ------------- Heat Dissipation 48 Coolant Potential 65 Energy Generation 18 Energy Capacity 310 Matter Stores 300 Matter Capacity 300 Sight Range 16 Terrain Scan Range 20 Terrain Scan Density 1110 Armor Coverage 225 Weapon Shielding 66 Evasion (%) 63 Melee Accuracy 6 Defensive Hacking 10 Item Schematics ----------------- Exp. Sensor Array | -8/Materials | Scanalyzed Cesium-ion Thruster | -6/Factory | Hacked Robot Schematics ------------------ None Fabricated ------------ Cesium-ion Thruster | x2 | -6/Factory Cesium-ion Thruster | x2 | -6/Factory Alien Tech Used ----------------- None Achievements -------------- None Challenges ------------ None Game ------ Seed ElectronGravmagTearclaws Manual? 0 Play Time 00:51:17 Cumulative 840.5 hours Start 2020.08.01 @ 18:13:14 End 2020.08.01 @ 19:05:00 Sessions 1 Manual Loads 0 Difficulty Rogue Special Mode None Game No. 261 Rogue 261 Adventurer 0 Explorer 0 Win Type - Total 50 Types 38/1/3/3/3/1/1 Lore% 97 Gallery% 99 Achievement% 97 Wizard Run 0 Options --------- ASCII 0 Keyboard 1 Movement Numpad Keybinds 0 Fullscreen 1 Font 18/SmallcapsGlow Map View 76x50 Tactical HUD 1 Map Filters NONE Filters NONE Steam 1 RUN: 5bc0ec6c-7a96-409e-bfcf-0590c182e865